[Event "FIDE CB Open 2022"]
[Site "Ceske Budejovice"]
[Date "2022.07.07"]
[Round "7.25"]
[White "Borkovec, Milan"]
[Black "Vilimek, Vit"]
[Result "1-0"]
[ECO "B33"]
[WhiteElo "2188"]
[BlackElo "1996"]
[Annotator "RC"]
[PlyCount "101"]
[EventDate "2022.07.01"]
[EventType "swiss"]
[EventCountry "CZE"]
[SourceTitle "playchess.com"]
[Source "ChessBase"]
[SourceQuality "1"]
[TimeControl "40/5400+30:1800+30"]

1. e4 {[%emt 0:00:06]} c5 {[%emt 0:00:00]} 2. Nf3 {[%emt 0:00:13]} Nc6 {[%emt 0:00:02]} 3. d4 {[%emt 0:00:10]} cxd4 {[%emt 0:00:02]} 4. Nxd4 {[%emt 0:00:10]} Nf6 {[%emt 0:00:01]} 5. Nc3 {[%emt 0:00:08]} e5 {[%emt 0:00:02]} 6. Ndb5 {[%emt 0:00:11]} d6 {[%emt 0:00:01]} 7. Bg5 {[%emt 0:00:14]} a6 {[%emt 0:00:02]} 8. Na3 {[%emt 0:00:07]} b5 {[%emt 0:00:05]} 9. Nd5 {[%emt 0:00:04]} Be7 {[%emt 0:00:04]} 10. Bxf6 {[%emt 0:00:07]} Bxf6 {[%emt 0:00:06]} 11. c3 {[%emt 0:00:05]} O-O {[%emt 0:00:09]} 12. Nc2 {[%emt 0:00:06]} Bg5 {[%emt 0:00:02]} 13. a4 {[%emt 0:00:07]} bxa4 {[%emt 0:00:01]} 14. Rxa4 {[%emt 0:00:08]} a5 {[%emt 0:00:04]} 15. Bc4 {[%emt 0:00:08]} Kh8 {[%emt 0:00:06]} 16. Nce3 {[%emt 0:00:05]} Be6 {[%emt 0:00:33]} 17. Qe2 {[%emt 0:02:01]} Bxe3 {[%emt 0:01:08]} 18. Nxe3 {[%emt 0:02:26]} Ne7 {[%emt 0:01:12]} 19. O-O {[%emt 0:04:47]} Qd7 {[%emt 0:06:57]} 20. Rfa1 {[%emt 0:10:26]} Qb7 {[%emt 0:01:13]} 21. Bxe6 {[%emt 0:08:46]} fxe6 {[%emt 0:00:27]} 22. Nc4 {[%emt 0:00:07]} Qc7 {[%emt 0:10:55]} 23. Nxa5 {[%emt 0:37:45]} Rab8 {[%emt 0:13:26]} 24. Nc4 {[%emt 0:08:27]} Ng6 {[%emt 0:02:53]} 25. Ra7 {[%emt 0:06:01]} Qc5 {[%emt 0:04:28]} 26. b4 {[%emt 0:04:47]} Qc6 {[%emt 0:03:31]} 27. R1a6 {[%emt 0:01:02]} Qb5 {[%emt 0:10:35]} 28. Ra5 {[%emt 0:00:16]} Qc6 {[%emt 0:01:04]} 29. R7a6 {[%emt 0:04:35]} Nf4 {[%emt 0:03:15]} 30. Rxc6 {[%emt 0:01:12]} Nxe2+ {[%emt 0:00:02]} 31. Kf1 {[%emt 0:00:09]} Nxc3 {[%emt 0:01:10]} 32. Nxd6 {[%emt 0:00:38]} Nb1 {[%emt 0:31:20]} 33. Rb5 {[%emt 0:04:34]} Nd2+ {[%emt 0:07:19]} 34. Ke2 {[%emt 0:00:08]} Rxb5 {[%emt 0:04:13]} 35. Nxb5 {[%emt 0:00:28]} Nxe4 {[%emt 0:00:06]} 36. Nd6 {[%emt 0:02:00]} Nxd6 {[%emt 0:01:06]} 37. Rxd6 {[%emt 0:00:01]} Rb8 {[%emt 0:00:02]} 38. b5 {[%emt 0:01:01]} Kg8 {[%emt 0:01:01]} 39. b6 {[%emt 0:00:01]} Kf8 {[%emt 0:00:42]} 40. Rxe6 {[%emt 0:00:54]} Kf7 {[%emt 0:00:27]} 41. Rc6 {[%emt 0:30:02]} Ke8 {[%emt 0:03:52]} 42. Ke3 {[%emt 0:00:00]} Rb7 {[%emt 0:00:53]} 43. Ke4 {[%emt 0:00:00]} Kd7 {[%emt 0:00:07]} 44. Kd5 {[%emt 0:00:00]} e4 {[%emt 0:03:14]} 45. Rd6+ {[%emt 0:00:00]} Ke7 {[%emt 0:00:54]} 46. Kc5 {[%emt 0:00:00]} g6 {[%emt 0:02:30]} 47. Rd4 {[%emt 0:00:00]} Rb8 {[%emt 0:03:57]} 48. Rxe4+ {[%emt 0:00:00]} Kd7 {[%emt 0:00:07]} 49. Rd4+ {[%emt 0:00:00]} Kc8 {[%emt 0:00:22]} 50. Kc6 {[%emt 0:00:00]} Rb7 {[%emt 0:00:11]} 51. Rf4 {[%emt 0:00:00]} 1-0

[Event "FIDE CB Open 2022"]
[Site "Ceske Budejovice"]
[Date "2022.07.07"]
[Round "7.26"]
[White "Laith, Kasib"]
[Black "Hosnedl, Matyas"]
[Result "1/2-1/2"]
[ECO "C02"]
[WhiteElo "2079"]
[BlackElo "1967"]
[Annotator "NA RC"]
[PlyCount "58"]
[EventDate "2022.07.01"]
[EventType "swiss"]
[EventCountry "CZE"]
[SourceTitle "playchess.com"]
[Source "ChessBase"]
[SourceQuality "1"]
[TimeControl "40/5400+30:1800+30"]

1. e4 {[%emt 0:02:19]} e6 {[%emt 0:00:19]} 2. d4 {[%emt 0:00:21]} d5 {[%emt 0:00:15]} 3. e5 {[%emt 0:00:08]} c5 {[%emt 0:00:15]} 4. c3 {[%emt 0:00:07]} Nc6 {[%emt 0:00:16]} 5. Nf3 {[%emt 0:00:18]} Bd7 {[%emt 0:00:25]} 6. Be2 {[%emt 0:00:28]} Nge7 {[%emt 0:02:48]} 7. O-O {[%emt 0:03:38]} Ng6 {[%emt 0:00:29]} 8. Be3 {[%emt 0:05:53]} Be7 {[%emt 0:01:09]} 9. Re1 {[%emt 0:07:34]} Qb6 {[%emt 0:05:03]} 10. Qd2 {[%emt 0:08:51]} O-O {[%emt 0:01:43]} 11. dxc5 {[%emt 0:02:31]} Bxc5 {[%emt 0:10:50]} 12. Bxc5 {[%emt 0:00:59]} Qxc5 {[%emt 0:00:11]} 13. b4 {[%emt 0:00:07]} Qe7 {[%emt 0:01:00]} 14. Bd3 {[%emt 0:00:07]} f6 {[%emt 0:07:46]} 15. Bxg6 {[%emt 0:11:51]} hxg6 {[%emt 0:00:15]} 16. exf6 {[%emt 0:02:13]} gxf6 {[%emt 0:04:27]} 17. b5 {[%emt 0:02:38]} Na5 {[%emt 0:01:00]} 18. Qxd5 {[%emt 0:14:55]} exd5 {[%emt 0:09:48]} 19. Rxe7 {[%emt 0:01:12]} Bxb5 {[%emt 0:00:15]} 20. Na3 {[%emt 0:00:42]} Ba4 {[%emt 0:02:11]} 21. Nh4 {[%emt 0:01:44]} g5 {[%emt 0:08:39]} 22. Nf5 {[%emt 0:00:11]} Rfe8 {[%emt 0:00:12]} 23. Rae1 {[%emt 0:03:10]} Kf8 {[%emt 0:02:13]} 24. R7e6 {[%emt 0:09:24]} Rxe6 {[%emt 0:00:10]} 25. Rxe6 {[%emt 0:00:12]} Kf7 {[%emt 0:00:18]} 26. Re7+ {[%emt 0:00:08]} Kf8 {[%emt 0:01:17]} 27. Rh7 {[%emt 0:08:36]} Kg8 {[%emt 0:00:37]} 28. Rg7+ {[%emt 0:00:06]} Kf8 {[%emt 0:00:09]} 29. Rh7 {[%emt 0:01:26]} Kg8 {[%emt 0:00:46]} 1/2-1/2

[Event "FIDE CB Open 2022"]
[Site "Ceske Budejovice"]
[Date "2022.07.07"]
[Round "7.27"]
[White "Zaza, Martin"]
[Black "Placer, Sebastian"]
[Result "0-1"]
[ECO "C18"]
[WhiteElo "1911"]
[BlackElo "2062"]
[Annotator "NA RC"]
[PlyCount "84"]
[EventDate "2022.07.01"]
[EventType "swiss"]
[EventCountry "CZE"]
[SourceTitle "playchess.com"]
[Source "ChessBase"]
[SourceQuality "1"]
[TimeControl "40/5400+30:1800+30"]

1. e4 {[%emt 0:00:04]} e6 {[%emt 0:00:16]} 2. d4 {[%emt 0:00:16]} d5 {[%emt 0:00:05]} 3. Nc3 {[%emt 0:00:25]} Bb4 {[%emt 0:00:04]} 4. e5 {[%emt 0:00:10]} c5 {[%emt 0:00:05]} 5. a3 {[%emt 0:00:09]} Ba5 {[%emt 0:00:21]} 6. b4 {[%emt 0:00:32]} cxd4 {[%emt 0:00:05]} 7. Nb5 {[%emt 0:00:09]} Bc7 {[%emt 0:00:04]} 8. f4 {[%emt 0:00:22]} Bd7 {[%emt 0:00:06]} 9. Nf3 {[%emt 0:00:24]} Bxb5 {[%emt 0:00:12]} 10. Bxb5+ {[%emt 0:00:09]} Nc6 {[%emt 0:00:03]} 11. Nxd4 {[%emt 0:00:58]} Nge7 {[%emt 0:00:25]} 12. O-O {[%emt 0:00:57]} O-O {[%emt 0:00:14]} 13. Kh1 {[%emt 0:01:17]} Bb6 {[%emt 0:02:40]} 14. Nxc6 {[%emt 0:01:35]} bxc6 {[%emt 0:00:14]} 15. Bd3 {[%emt 0:00:11]} Qd7 {[%emt 0:06:16]} 16. c4 {[%emt 0:00:36]} Rfd8 {[%emt 0:03:20]} 17. c5 {[%emt 0:02:50]} Bc7 {[%emt 0:00:03]} 18. Rf3 {[%emt 0:02:41]} g6 {[%emt 0:02:35]} 19. h4 {[%emt 0:00:46]} a5 {[%emt 0:00:31]} 20. Rb1 {[%emt 0:00:49]} Rdb8 {[%emt 0:02:18]} 21. h5 {[%emt 0:01:47]} Bd8 {[%emt 0:05:33]} 22. g4 {[%emt 0:01:47]} axb4 {[%emt 0:04:46]} 23. hxg6 {[%emt 0:01:36]} fxg6 {[%emt 0:00:46]} 24. f5 {[%emt 0:00:28]} exf5 {[%emt 0:39:47]} 25. gxf5 {[%emt 0:00:10]} Nxf5 {[%emt 0:01:33]} 26. Bxf5 {[%emt 0:00:20]} gxf5 {[%emt 0:00:03]} 27. Rg3+ {[%emt 0:00:08]} Kh8 {[%emt 0:00:48]} 28. e6 {[%emt 0:00:34]} Qxe6 {[%emt 0:00:05]} 29. Bb2+ {[%emt 0:01:35]} Bf6 {[%emt 0:00:05]} 30. Qd4 {[%emt 0:00:12]} Rf8 {[%emt 0:00:07]} 31. Qxb4 {[%emt 0:00:42]} Bxb2 {[%emt 0:00:27]} 32. Qxb2+ {[%emt 0:00:11]} Qf6 {[%emt 0:00:30]} 33. Qxf6+ {[%emt 0:00:44]} Rxf6 {[%emt 0:00:00]} 34. a4 {[%emt 0:00:33]} f4 {[%emt 0:00:37]} 35. Rg4 {[%emt 0:00:07]} h5 {[%emt 0:01:14]} 36. Rg5 {[%emt 0:00:15]} Rxa4 {[%emt 0:01:29]} 37. Rxh5+ {[%emt 0:00:17]} Kg7 {[%emt 0:00:06]} 38. Rg5+ {[%emt 0:00:31]} Kh6 {[%emt 0:00:58]} 39. Rg4 {[%emt 0:01:00]} Kh5 {[%emt 0:00:40]} 40. Rbg1 {[%emt 0:00:13]} Ra1 {[%emt 0:01:00]} 41. Rg8 {[%emt 0:31:27]} Rxg1+ {[%emt 0:30:07]} 42. Kxg1 {[%emt 0:00:06]} Rg6+ {[%emt 0:00:06]} 0-1

[Event "FIDE CB Open 2022"]
[Site "Ceske Budejovice"]
[Date "2022.07.07"]
[Round "7.28"]
[White "Shirinyan, Daniel"]
[Black "Kovalskyi, Roman"]
[Result "0-1"]
[ECO "A08"]
[WhiteElo "1876"]
[BlackElo "2056"]
[Annotator "NA RC"]
[PlyCount "40"]
[EventDate "2022.07.01"]
[EventType "swiss"]
[EventCountry "CZE"]
[SourceTitle "playchess.com"]
[Source "ChessBase"]
[SourceQuality "1"]
[TimeControl "40/5400+30:1800+30"]

1. Nf3 {[%emt 0:00:04]} d5 {[%emt 0:00:16]} 2. g3 {[%emt 0:00:07]} c5 {[%emt 0:00:03]} 3. Bg2 {[%emt 0:00:04]} g6 {[%emt 0:00:04]} 4. O-O {[%emt 0:00:08]} Bg7 {[%emt 0:00:04]} 5. d3 {[%emt 0:00:17]} Nc6 {[%emt 0:00:06]} 6. Nc3 {[%emt 0:00:23]} Nf6 {[%emt 0:00:20]} 7. e4 {[%emt 0:00:26]} dxe4 {[%emt 0:13:00]} 8. dxe4 {[%emt 0:00:06]} Bg4 {[%emt 0:00:05]} 9. Be3 {[%emt 0:05:28]} Qa5 {[%emt 0:05:38]} 10. Qc1 {[%emt 0:00:17]} Bxf3 {[%emt 0:11:57]} 11. Bxf3 {[%emt 0:00:08]} Nd4 {[%emt 0:00:03]} 12. Bd1 {[%emt 0:12:39]} h5 {[%emt 0:06:17]} 13. h4 {[%emt 0:00:50]} Rd8 {[%emt 0:02:27]} 14. f4 {[%emt 0:21:47]} Ng4 {[%emt 0:16:38]} 15. e5 {[%emt 0:06:57]} Nf5 {[%emt 0:16:28]} 16. Bxg4 {[%emt 0:02:08]} hxg4 {[%emt 0:00:14]} 17. Bf2 {[%emt 0:03:10]} g5 {[%emt 0:16:05]} 18. hxg5 {[%emt 0:03:29]} Qb6 {[%emt 0:00:13]} 19. Rd1 {[%emt 0:20:35]} Nd4 {[%emt 0:02:36]} 20. Bxd4 {[%emt 0:09:21]} Qc6 {[%emt 0:00:37]} 0-1

[Event "FIDE CB Open 2022"]
[Site "Ceske Budejovice"]
[Date "2022.07.07"]
[Round "7.29"]
[White "Hurtik, Matej"]
[Black "Hradek, Matyas"]
[Result "1-0"]
[ECO "C52"]
[WhiteElo "2018"]
[BlackElo "1888"]
[Annotator "NA RC"]
[PlyCount "59"]
[EventDate "2022.07.01"]
[EventType "swiss"]
[EventCountry "CZE"]
[SourceTitle "playchess.com"]
[Source "ChessBase"]
[SourceQuality "1"]
[TimeControl "40/5400+30:1800+30"]

1. e4 {[%emt 0:00:53]} e5 {[%emt 0:00:29]} 2. Nf3 {[%emt 0:00:13]} Nc6 {[%emt 0:00:14]} 3. Bc4 {[%emt 0:00:07]} Bc5 {[%emt 0:00:03]} 4. b4 {[%emt 0:00:06]} Bxb4 {[%emt 0:00:26]} 5. c3 {[%emt 0:00:09]} Ba5 {[%emt 0:00:11]} 6. d4 {[%emt 0:00:06]} d6 {[%emt 0:00:15]} 7. Qb3 {[%emt 0:02:20]} Qd7 {[%emt 0:00:36]} 8. O-O {[%emt 0:02:06]} Nf6 {[%emt 0:14:57]} 9. dxe5 {[%emt 0:02:05]} Nxe4 {[%emt 0:16:18]} 10. Re1 {[%emt 0:04:05]} d5 {[%emt 0:01:12]} 11. Bxd5 {[%emt 0:00:03]} Nc5 {[%emt 0:00:14]} 12. Qc4 {[%emt 0:00:32]} Ne6 {[%emt 0:05:13]} 13. Ba3 {[%emt 0:01:38]} Bb6 {[%emt 0:06:15]} 14. Rd1 {[%emt 0:02:17]} Ne7 {[%emt 0:01:39]} 15. Qh4 {[%emt 0:25:27]} Ng6 {[%emt 0:14:16]} 16. Qe4 {[%emt 0:02:09]} Bc5 {[%emt 0:08:14]} 17. Bb3 {[%emt 0:05:21]} Qe7 {[%emt 0:02:39]} 18. Ba4+ {[%emt 0:00:11]} Kf8 {[%emt 0:03:03]} 19. Bb2 {[%emt 0:02:34]} Bb6 {[%emt 0:04:17]} 20. Bb3 {[%emt 0:22:54]} Nc5 {[%emt 0:01:52]} 21. Qc2 {[%emt 0:02:54]} Bg4 {[%emt 0:02:13]} 22. Nbd2 {[%emt 0:01:46]} Nxe5 {[%emt 0:01:58]} 23. Ba3 {[%emt 0:02:54]} Nxf3+ {[%emt 0:01:31]} 24. Nxf3 {[%emt 0:01:07]} Bxf3 {[%emt 0:00:09]} 25. gxf3 {[%emt 0:00:06]} Qg5+ {[%emt 0:00:57]} 26. Kh1 {[%emt 0:00:24]} c6 {[%emt 0:03:19]} 27. Rd7 {[%emt 0:01:14]} Ke8 {[%emt 0:03:56]} 28. Rxf7 {[%emt 0:06:30]} Nxb3 {[%emt 0:00:43]} 29. Qxb3 {[%emt 0:02:25]} Qd5 {[%emt 0:00:52]} 30. Re7+ {[%emt 0:00:09]} 1-0

[Event "FIDE CB Open 2022"]
[Site "Ceske Budejovice"]
[Date "2022.07.07"]
[Round "7.30"]
[White "Schmied, Eva-Maria"]
[Black "Radovic, Stefan"]
[Result "0-1"]
[ECO "B33"]
[WhiteElo "1718"]
[BlackElo "2018"]
[Annotator "NA"]
[PlyCount "78"]
[EventDate "2022.07.01"]
[EventType "swiss"]
[EventCountry "CZE"]
[SourceTitle "playchess.com"]
[Source "ChessBase"]
[SourceQuality "1"]
[TimeControl "40/5400+30:1800+30"]

1. e4 {[%emt 0:00:03]} c5 {[%emt 0:00:04]} 2. Nf3 {[%emt 0:00:05]} Nc6 {[%emt 0:00:04]} 3. d4 {[%emt 0:00:04]} cxd4 {[%emt 0:00:06]} 4. Nxd4 {[%emt 0:00:05]} Nf6 {[%emt 0:00:22]} 5. Nc3 {[%emt 0:00:07]} e5 {[%emt 0:00:04]} 6. Ndb5 {[%emt 0:00:06]} d6 {[%emt 0:00:07]} 7. Bg5 {[%emt 0:00:09]} a6 {[%emt 0:00:03]} 8. Na3 {[%emt 0:00:05]} b5 {[%emt 0:00:04]} 9. Nd5 {[%emt 0:00:06]} Be7 {[%emt 0:00:09]} 10. Bxf6 {[%emt 0:00:05]} Bxf6 {[%emt 0:00:18]} 11. c4 {[%emt 0:00:09]} b4 {[%emt 0:00:52]} 12. Nc2 {[%emt 0:00:06]} a5 {[%emt 0:03:26]} 13. g3 {[%emt 0:00:19]} O-O {[%emt 0:02:46]} 14. h4 {[%emt 0:00:15]} Be6 {[%emt 0:06:27]} 15. Bh3 {[%emt 0:01:05]} Bxd5 {[%emt 0:11:10]} 16. Qxd5 {[%emt 0:00:55]} Qb6 {[%emt 0:06:40]} 17. b3 {[%emt 0:09:35]} Nd4 {[%emt 0:11:33]} 18. Nxd4 {[%emt 0:01:15]} exd4 {[%emt 0:05:38]} 19. O-O {[%emt 0:01:12]} a4 {[%emt 0:02:28]} 20. Bd7 {[%emt 0:01:04]} axb3 {[%emt 0:11:57]} 21. axb3 {[%emt 0:00:04]} Ra3 {[%emt 0:01:01]} 22. Ba4 {[%emt 0:07:12]} Rc8 {[%emt 0:14:10]} 23. Qb5 {[%emt 0:19:35]} Qxb5 {[%emt 0:02:20]} 24. cxb5 {[%emt 0:00:09]} Bd8 {[%emt 0:03:15]} 25. Rad1 {[%emt 0:02:02]} Bb6 {[%emt 0:00:21]} 26. Rd2 {[%emt 0:00:15]} Kf8 {[%emt 0:02:26]} 27. Kg2 {[%emt 0:03:30]} Ke7 {[%emt 0:00:08]} 28. f3 {[%emt 0:07:29]} f6 {[%emt 0:00:40]} 29. Rfd1 {[%emt 0:05:16]} Rc3 {[%emt 0:03:30]} 30. Re1 {[%emt 0:05:12]} h5 {[%emt 0:01:49]} 31. Red1 {[%emt 0:05:31]} Ke6 {[%emt 0:03:45]} 32. Re1 {[%emt 0:04:36]} Ke5 {[%emt 0:01:21]} 33. f4+ {[%emt 0:05:38]} Ke6 {[%emt 0:00:07]} 34. Red1 {[%emt 0:03:27]} Bc5 {[%emt 0:03:53]} 35. Re1 {[%emt 0:01:56]} Re3 {[%emt 0:02:03]} 36. Rc1 {[%emt 0:04:18]} Rxe4 {[%emt 0:01:37]} 37. Rxc5 {[%emt 0:00:47]} dxc5 {[%emt 0:00:07]} 38. b6 {[%emt 0:00:29]} Kd6 {[%emt 0:00:34]} 39. b7 {[%emt 0:00:13]} Kc7 {[%emt 0:00:20]} 0-1

[Event "FIDE CB Open 2022"]
[Site "Ceske Budejovice"]
[Date "2022.07.07"]
[Round "7.31"]
[White "Rosol, Alexander"]
[Black "Koc, Azra Ece"]
[Result "1-0"]
[ECO "B10"]
[WhiteElo "2001"]
[BlackElo "1867"]
[Annotator "NA RC"]
[PlyCount "83"]
[EventDate "2022.07.01"]
[EventType "swiss"]
[EventCountry "CZE"]
[SourceTitle "playchess.com"]
[Source "ChessBase"]
[SourceQuality "1"]
[TimeControl "40/5400+30:1800+30"]

1. e4 {[%emt 0:00:10]} c6 {[%emt 0:00:04]} 2. d3 {[%emt 0:01:05]} d6 {[%emt 0:02:16]} 3. Nf3 {[%emt 0:02:36]} e5 {[%emt 0:00:25]} 4. g3 {[%emt 0:01:26]} g6 {[%emt 0:03:09]} 5. Bg2 {[%emt 0:01:04]} Bg7 {[%emt 0:00:10]} 6. O-O {[%emt 0:00:45]} Ne7 {[%emt 0:05:43]} 7. Be3 {[%emt 0:02:48]} Na6 {[%emt 0:03:47]} 8. Qd2 {[%emt 0:06:54]} h6 {[%emt 0:00:19]} 9. c3 {[%emt 0:09:25]} Bd7 {[%emt 0:03:15]} 10. Ne1 {[%emt 0:09:46]} Qc8 {[%emt 0:03:06]} 11. f4 {[%emt 0:02:37]} Bh3 {[%emt 0:02:18]} 12. Bxh3 {[%emt 0:03:40]} Qxh3 {[%emt 0:00:06]} 13. fxe5 {[%emt 0:00:13]} dxe5 {[%emt 0:01:57]} 14. Bxa7 {[%emt 0:02:13]} O-O {[%emt 0:05:32]} 15. Be3 {[%emt 0:01:08]} f5 {[%emt 0:05:08]} 16. Qg2 {[%emt 0:05:57]} Qxg2+ {[%emt 0:10:48]} 17. Kxg2 {[%emt 0:02:03]} g5 {[%emt 0:05:37]} 18. exf5 {[%emt 0:12:53]} Rxf5 {[%emt 0:07:18]} 19. Rxf5 {[%emt 0:01:32]} Nxf5 {[%emt 0:00:02]} 20. Bf2 {[%emt 0:00:33]} Nc7 {[%emt 0:06:26]} 21. Nd2 {[%emt 0:05:43]} Nd5 {[%emt 0:04:12]} 22. Nc2 {[%emt 0:01:22]} b5 {[%emt 0:05:14]} 23. a3 {[%emt 0:01:45]} Rd8 {[%emt 0:02:18]} 24. Ne4 {[%emt 0:01:01]} Nf6 {[%emt 0:03:44]} 25. Nc5 {[%emt 0:07:00]} Ng4 {[%emt 0:04:09]} 26. Rd1 {[%emt 0:05:36]} Kf7 {[%emt 0:02:21]} 27. Bg1 {[%emt 0:01:09]} Rd5 {[%emt 0:03:55]} 28. Rf1 {[%emt 0:02:24]} Kg6 {[%emt 0:01:01]} 29. h3 {[%emt 0:00:55]} Nf6 {[%emt 0:00:15]} 30. Rxf5 {[%emt 0:00:38]} Kxf5 {[%emt 0:00:11]} 31. Ne3+ {[%emt 0:00:07]} Kg6 {[%emt 0:00:06]} 32. Nxd5 {[%emt 0:00:06]} Nxd5 {[%emt 0:01:36]} 33. Kf3 {[%emt 0:00:36]} h5 {[%emt 0:04:39]} 34. Ne6 {[%emt 0:02:51]} Bf6 {[%emt 0:01:13]} 35. c4 {[%emt 0:02:03]} Ne7 {[%emt 0:01:36]} 36. Ke4 {[%emt 0:00:36]} Kf7 {[%emt 0:02:01]} 37. Nc7 {[%emt 0:01:19]} Nc8 {[%emt 0:01:20]} 38. Bc5 {[%emt 0:00:51]} Bd8 {[%emt 0:00:57]} 39. Na6 {[%emt 0:00:25]} Ke6 {[%emt 0:00:02]} 40. Bf8 {[%emt 0:02:47]} Be7 {[%emt 0:01:38]} 41. Bxe7 {[%emt 0:30:36]} Nxe7 {[%emt 0:30:05]} 42. cxb5 {[%emt 0:00:10]} 1-0

[Event "FIDE CB Open 2022"]
[Site "Ceske Budejovice"]
[Date "2022.07.07"]
[Round "7.32"]
[White "Zednicek, Filip"]
[Black "Dotzer, Lukas"]
[Result "1/2-1/2"]
[ECO "B48"]
[WhiteElo "1688"]
[BlackElo "2269"]
[Annotator "RC"]
[PlyCount "81"]
[EventDate "2022.07.01"]
[EventType "swiss"]
[EventCountry "CZE"]
[SourceTitle "playchess.com"]
[Source "ChessBase"]
[SourceQuality "1"]
[TimeControl "40/5400+30:1800+30"]

1. e4 {[%emt 0:00:27]} c5 {[%emt 0:00:05]} 2. Nf3 {[%emt 0:00:36]} e6 {[%emt 0:00:17]} 3. d4 {[%emt 0:00:10]} cxd4 {[%emt 0:00:09]} 4. Nxd4 {[%emt 0:00:07]} Nc6 {[%emt 0:00:06]} 5. Nc3 {[%emt 0:00:24]} Qc7 {[%emt 0:00:07]} 6. Be3 {[%emt 0:00:53]} a6 {[%emt 0:00:05]} 7. Qd2 {[%emt 0:00:55]} Nf6 {[%emt 0:00:22]} 8. O-O-O {[%emt 0:00:44]} Bb4 {[%emt 0:00:34]} 9. f3 {[%emt 0:00:39]} Ne7 {[%emt 0:01:47]} 10. Nde2 {[%emt 0:01:13]} d5 {[%emt 0:00:25]} 11. a3 {[%emt 0:02:05]} Bc5 {[%emt 0:02:37]} 12. Bg5 {[%emt 0:03:02]} dxe4 {[%emt 0:04:41]} 13. Bxf6 {[%emt 0:04:25]} e3 {[%emt 0:10:38]} 14. Qd3 {[%emt 0:00:40]} gxf6 {[%emt 0:00:15]} 15. Ne4 {[%emt 0:00:21]} Nd5 {[%emt 0:01:48]} 16. N2c3 {[%emt 0:02:47]} Nf4 {[%emt 0:17:24]} 17. Qc4 {[%emt 0:01:32]} e2 {[%emt 0:02:59]} 18. Bxe2 {[%emt 0:01:57]} Be3+ {[%emt 0:01:39]} 19. Kb1 {[%emt 0:00:17]} Qxc4 {[%emt 0:00:17]} 20. Bxc4 {[%emt 0:00:20]} Ke7 {[%emt 0:10:47]} 21. g3 {[%emt 0:01:20]} f5 {[%emt 0:07:14]} 22. Nd6 {[%emt 0:02:38]} Rd8 {[%emt 0:10:29]} 23. Nxf5+ {[%emt 0:04:41]} exf5 {[%emt 0:00:10]} 24. Rhe1 {[%emt 0:00:17]} Ng2 {[%emt 0:11:52]} 25. Re2 {[%emt 0:00:33]} Be6 {[%emt 0:02:41]} 26. Bxe6 {[%emt 0:01:31]} fxe6 {[%emt 0:00:17]} 27. Rxg2 {[%emt 0:00:42]} Rxd1+ {[%emt 0:01:16]} 28. Nxd1 {[%emt 0:00:05]} Bd4 {[%emt 0:00:09]} 29. c3 {[%emt 0:01:51]} Bc5 {[%emt 0:01:00]} 30. Re2 {[%emt 0:01:04]} Kf6 {[%emt 0:04:29]} 31. Rd2 {[%emt 0:03:52]} b5 {[%emt 0:02:12]} 32. Nf2 {[%emt 0:03:02]} Be3 {[%emt 0:02:35]} 33. Re2 {[%emt 0:00:04]} Bxf2 {[%emt 0:00:05]} 34. Rxf2 {[%emt 0:00:03]} e5 {[%emt 0:00:25]} 35. Kc2 {[%emt 0:01:19]} h5 {[%emt 0:02:05]} 36. Kd2 {[%emt 0:01:24]} h4 {[%emt 0:01:57]} 37. g4 {[%emt 0:01:21]} h3 {[%emt 0:01:10]} 38. Ke3 {[%emt 0:02:16]} Rg8 {[%emt 0:00:52]} 39. gxf5 {[%emt 0:02:10]} Kxf5 {[%emt 0:00:12]} 40. f4 {[%emt 0:01:57]} e4 {[%emt 0:01:05]} 41. Rd2 {[%emt 1:09:05]} 1/2-1/2